fUST/lending_fUST_20250203
["ID","MTS","AMOUNT","RATE_DAILY","PERIOD"]
[351380047,1738548654718,-217.43311,0.000179,2]
[351380048,1738548654728,-217.43311,0.000179,2]
[351380049,1738548654738,-988.482214,0.000179,2]
[351380050,1738548654747,-988.482214,0.000179,2]
[351380051,1738548654757,-151.0,0.000179,2]
[351380052,1738548654766,-151.0,0.000179,2]
[351380053,1738548654776,-151.0,0.000179,2]
[351380054,1738548654785,-314.33492,0.000179,2]
[351380056,1738548654795,-314.33492,0.000179,2]
[351380057,1738548654804,-151.0,0.000179,2]
[351380058,1738548654814,-460.09044,0.000179,2]
[351380059,1738548654824,-460.09044,0.000179,2]
[351380060,1738548654833,-151.0,0.000179,2]
[351380061,1738548654843,-151.0,0.000179,2]
[351380062,1738548654852,-354.358345,0.000179,2]
[351380063,1738548654862,-354.358345,0.000179,2]
[351380064,1738548654871,-151.0,0.000179,2]
[351380065,1738548654881,-151.0,0.000179,2]
[351380066,1738548654891,-151.0,0.000179,2]
[351380067,1738548654903,-288.074301,0.000179,2]
[351380068,1738548654912,-151.0,0.000179,2]
[351380069,1738548654921,-151.0,0.000179,2]
[351380070,1738548654930,-151.0,0.000179,2]
[351380071,1738548654939,-151.0,0.000179,2]
[351380072,1738548654949,-151.0,0.000179,2]
[351380073,1738548654958,-263.45743,0.000179,2]
[351380074,1738548654968,-151.97651,0.000179,2]
[351380075,1738548654978,-268.421789,0.000179,2]
[351380076,1738548654988,-268.421789,0.000179,2]
[351380077,1738548655004,-151.0,0.000179,2]
[351380078,1738548655014,-151.0,0.000179,2]
[351380079,1738548655023,-151.0,0.000179,2]
[351380080,1738548655034,-151.0,0.000179,2]
[351380081,1738548655044,-151.0,0.000179,2]
[351380082,1738548655053,-152.708032,0.000179,2]
[351380083,1738548655063,-786.284779,0.000179,2]
[351380084,1738548655072,-786.284779,0.000179,2]
[351380085,1738548655082,-786.284779,0.000179,2]
[351380086,1738548655091,-786.284779,0.000179,2]
[351380087,1738548655101,-621.0,0.000179,2]
[351380088,1738548655111,-1257.10524281,0.000179,2]
[351380089,1738548655121,-150.618838,0.000179,15]
[351380090,1738548655131,-1042.74499789,0.000179,2]
[351380091,1738548655140,-186.813857,0.000179,2]
[351380092,1738548655150,-186.813857,0.000179,2]
[351380093,1738548655159,-151.0,0.000179,2]
[351380094,1738548655169,-153.17,0.00017901,2]
[351380095,1738548655178,-153.0,0.00017903,2]
[351380096,1738548655188,-153.0,0.00017903,2]
[351380097,1738548655198,-153.0,0.00017903,2]
[351380098,1738548655208,-153.0,0.00017903,2]
[351380099,1738548655218,-153.0,0.00017903,2]
[351380100,1738548655227,-153.0,0.00017903,2]
[351380101,1738548655237,-153.0,0.00017903,2]
[351380102,1738548655247,-153.0,0.00017903,2]
[351380103,1738548655257,-153.0,0.00017903,2]
[351380104,1738548655266,-153.0,0.00017903,2]
[351380105,1738548655275,-153.0,0.00017903,2]
[351380106,1738548655285,-153.0,0.00017903,2]
[351380107,1738548655294,-153.0,0.00017903,2]
[351380108,1738548655304,-153.0,0.00017903,2]
[351380109,1738548655314,-179.73,0.00017903,2]
[351380110,1738548655324,-256.15,0.00017903,2]
[351380111,1738548655334,-151.0,0.00017904,2]
[351380112,1738548655343,-151.0,0.00017904,2]
[351380113,1738548655353,-151.0,0.00017904,2]
[351380114,1738548655363,-151.0,0.00017904,2]
[351380115,1738548655372,-151.0,0.00017904,2]
[351380116,1738548655382,-151.0,0.00017904,2]
[351380117,1738548655393,-151.0,0.00017904,2]
[351380118,1738548655406,-151.0,0.00017904,2]
[351380119,1738548655416,-151.0,0.00017904,2]
[351380120,1738548655426,-151.0,0.00017904,2]
[351380121,1738548655437,-151.0,0.00017904,2]
[351380122,1738548655447,-151.0,0.00017904,2]
[351380123,1738548655457,-151.0,0.00017904,2]
[351380124,1738548655467,-151.0,0.00017904,2]
[351380125,1738548655477,-151.0,0.00017904,2]
[351380126,1738548655487,-151.0,0.00017904,2]
[351380127,1738548655496,-151.0,0.00017904,2]
[351380128,1738548655506,-151.0,0.00017904,2]
[351380129,1738548655515,-151.0,0.00017904,2]
[351380130,1738548655524,-151.0,0.00017904,2]
[351380131,1738548655534,-151.0,0.00017904,2]
[351380132,1738548655544,-151.0,0.00017904,2]
[351380133,1738548655555,-151.0,0.00017904,2]
[351380134,1738548655566,-151.0,0.00017904,2]
[351380135,1738548655578,-151.0,0.00017904,2]
[351380136,1738548655594,-151.0,0.00017904,2]
[351380137,1738548655604,-151.0,0.00017904,2]
[351380138,1738548655615,-151.0,0.00017904,2]
[351380139,1738548655625,-151.0,0.00017904,2]
[351380140,1738548655636,-151.0,0.00017904,2]
[351380141,1738548655647,-234.0,0.00017904,2]
[351380142,1738548655659,-153.0,0.00017904,2]
[351380143,1738548655672,-153.0,0.00017904,2]
[351380144,1738548655685,-153.0,0.00017904,2]
[351380146,1738548655695,-153.0,0.00017904,2]
[351380147,1738548655705,-153.0,0.00017904,2]
[351380148,1738548655716,-153.0,0.00017904,2]
[351380149,1738548655726,-153.0,0.00017904,2]
[351380150,1738548655735,-153.0,0.00017904,2]
[351380151,1738548655746,-153.0,0.00017904,2]
[351380152,1738548655756,-153.0,0.00017904,2]
[351380153,1738548655766,-153.0,0.00017904,2]
[351380154,1738548655776,-153.0,0.00017904,2]
[351380155,1738548655786,-153.0,0.00017904,2]
[351380156,1738548655796,-153.0,0.00017904,2]
[351380157,1738548655805,-153.0,0.00017904,2]
[351380158,1738548655815,-153.0,0.00017904,2]
[351380159,1738548655824,-153.0,0.00017904,2]
[351380160,1738548655833,-153.0,0.00017904,2]
[351380161,1738548655842,-153.0,0.00017904,2]
[351380162,1738548655851,-153.0,0.00017904,2]
[351380163,1738548655861,-153.0,0.00017904,2]
[351380164,1738548655870,-153.0,0.00017904,2]
[351380165,1738548655879,-153.0,0.00017904,2]
[351380166,1738548655889,-153.0,0.00017904,2]
[351380167,1738548655900,-153.0,0.00017904,2]
[351380168,1738548655909,-153.0,0.00017904,2]
[351380169,1738548655919,-153.0,0.00017904,2]
[351380170,1738548655928,-153.0,0.00017904,2]
[351380171,1738548655938,-153.0,0.00017904,2]
[351380172,1738548655947,-153.0,0.00017904,2]
[351380173,1738548655957,-153.0,0.00017904,2]
[351380174,1738548655967,-153.0,0.00017904,2]
[351380175,1738548655977,-153.0,0.00017904,2]
[351380176,1738548655986,-153.0,0.00017904,2]
[351380177,1738548655995,-153.0,0.00017904,2]
[351380178,1738548656005,-153.0,0.00017904,2]
[351380179,1738548656015,-153.0,0.00017904,2]
[351380180,1738548656025,-153.0,0.00017904,2]
[351380181,1738548656035,-153.0,0.00017904,2]
[351380182,1738548656046,-153.0,0.00017904,2]
[351380183,1738548656056,-153.0,0.00017904,2]
[351380184,1738548656065,-153.0,0.00017904,2]
[351380185,1738548656076,-206.0,0.00017904,2]
[351380186,1738548656086,-151.0,0.00017905,2]
[351380187,1738548656095,-151.0,0.00017905,2]
[351380188,1738548656105,-151.0,0.00017905,2]
[351380189,1738548656114,-151.0,0.00017905,2]
[351380190,1738548656124,-151.0,0.00017905,2]
[351380191,1738548656133,-151.0,0.00017905,2]
[351380192,1738548656142,-151.0,0.00017905,2]
[351380193,1738548656155,-151.0,0.00017905,2]
[351380194,1738548656164,-250.0,0.00017906,2]
[351380195,1738548656174,-150.618838,0.00017916,4]
[351380196,1738548656184,-150.618838,0.00017928,5]
[351380197,1738548656192,-151.0,0.00017945,2]
[351380198,1738548656201,-151.0,0.00017945,2]
[351380199,1738548656211,-194.272939,0.00017945,2]
[351380200,1738548656221,-193.544829,0.00017945,2]
[351380201,1738548656231,-276.855691,0.00017945,2]
[351380202,1738548656240,-291.631424,0.00017945,2]
[351380203,1738548656250,-217.43311,0.00017945,2]
[351380204,1738548656259,-217.43311,0.00017945,2]
[351380205,1738548656269,-988.482214,0.00017945,2]
[351380206,1738548656278,-988.482214,0.00017945,2]
[351380207,1738548656288,-500.0,0.00017945,2]
[351380209,1738548656297,-569.82,0.00017945,2]
[351380210,1738548656306,-151.0,0.00017945,2]
[351380211,1738548656315,-151.0,0.00017945,2]
[351380212,1738548656324,-174.318514,0.00017945,2]
[351380213,1738548656439,-500.0,0.00017945,2]
[351380214,1738548656451,-514.31248315,0.00017945,2]
[351380215,1738548656461,-314.33492,0.00017945,2]
[351380216,1738548656472,-500.0,0.00017945,2]
[351380217,1738548656481,-314.33492,0.00017945,2]
[351380218,1738548656490,-617.52,0.00017945,2]
[351380219,1738548656500,-151.0,0.00017945,2]
[351380220,1738548656510,-460.09044,0.00017945,2]
[351380221,1738548656519,-460.09044,0.00017945,2]
[351380222,1738548656529,-151.0,0.00017945,2]
[351380223,1738548656539,-151.0,0.00017945,2]
[351380224,1738548656548,-500.0,0.00017945,2]
[351380225,1738548656558,-781.11,0.00017945,2]
[351380226,1738548656568,-354.358345,0.00017945,2]
[351380227,1738548656578,-354.358345,0.00017945,2]
[351380228,1738548656589,-151.0,0.00017945,2]
[351380229,1738548656598,-151.0,0.00017945,2]
[351380230,1738548656608,-640.88,0.00017945,2]
[351380231,1738548656618,-151.0,0.00017945,2]
[351380232,1738548656631,-1663.19,0.00017945,2]
[351380233,1738548656641,-612.77,0.00017945,2]
[351380234,1738548656652,-532.76,0.00017945,2]
[351380235,1738548656662,-799.22,0.00017945,2]
[351380236,1738548656671,-1107.36,0.00017945,2]
[351380237,1738548656681,-268.421789,0.00017945,2]
[351380238,1738548656691,-268.421789,0.00017945,2]
[351380239,1738548656701,-1003.77,0.00017945,2]
[351380240,1738548656711,-517.26,0.00017945,2]
[351380241,1738548656722,-500.0,0.00017945,2]
[351380242,1738548656732,-151.0,0.00017945,2]
[351380243,1738548656742,-570.04,0.00017945,2]
[351380244,1738548656752,-1635.17,0.00017945,2]
[351380245,1738548656762,-500.0,0.00017945,2]
[351380246,1738548656772,-3978.52,0.00017945,2]
[351380247,1738548656783,-13223.6,0.00017945,2]
[351380248,1738548656793,-1140.3,0.00017945,2]
[351380249,1738548656803,-830.51,0.00017945,2]
[351380250,1738548656812,-500.0,0.00017945,2]
[351380251,1738548656822,-166.2605091,0.00017945,2]
[351380252,1738548656832,-640.81258614,0.00017945,2]
[351380253,1738548656842,-2423.95,0.00017945,2]
[351380254,1738548656851,-528.79,0.00017945,2]
[351380255,1738548656861,-8569.71,0.00017945,2]
[351380256,1738548656871,-2493.97,0.00017945,2]
[351380257,1738548656880,-1123.29,0.00017945,2]
[351380258,1738548656890,-970.13,0.00017945,2]
[351380259,1738548656901,-500.0,0.00017945,2]
[351380260,1738548656911,-1070.89,0.00017945,2]
[351380261,1738548656921,-500.0,0.00017945,2]
[351380262,1738548656932,-602.070394,0.00017945,2]
[351380263,1738548656942,-602.070394,0.00017945,2]
[351380264,1738548656952,-9089.2,0.00017945,2]
[351380265,1738548656962,-4825.55,0.00017945,2]
[351380266,1738548656972,-500.0,0.00017945,2]
[351380267,1738548656983,-1033.58,0.00017945,2]
[351380268,1738548656994,-1182.38,0.00017945,2]
[351380269,1738548657006,-2083.78,0.00017945,2]
[351380270,1738548657017,-500.0,0.00017945,2]
[351380271,1738548657029,-2045.14,0.00017945,2]
[351380272,1738548657040,-2045.35,0.00017945,2]
[351380273,1738548657050,-500.0,0.00017945,2]
[351380274,1738548657061,-947.86,0.00017945,2]
[351380275,1738548657071,-500.0,0.00017945,2]
[351380276,1738548657082,-979.96,0.00017945,2]
[351380277,1738548657092,-3039.38,0.00017945,2]
[351380278,1738548657101,-150.618838,0.0001795,15]
[351380279,1738548657110,-420.0,0.00017962,2]
[351380280,1738548657119,-150.618838,0.0001797,5]
[351380281,1738548657127,-500.0,0.00017973,2]
[351380282,1738548657136,-1000.0,0.0001798,2]
[351380283,1738548657145,-510.81830782,0.0001799,2]
[351380284,1738548657156,-160.0,0.00017991,6]
[351380285,1738548657166,-54770.28503144,0.00017998,2]
[351380286,1738548657175,-151.0,0.00017999,4]
[351380287,1738548657184,-150.618838,0.00017999,4]
[351380288,1738548657193,-2894.69060884,0.00018,15]
[351380289,1738548657202,-2979406.21907003,0.00018,15]
[351380290,1738548657221,-2128.30200003,0.00018,15]
[351380291,1738548657231,-2529.86117157,0.00018,15]
[351380292,1738548657242,-54210.31790962,0.00018,15]
[351380293,1738548657253,-155376.95825651,0.00018,15]
[351380294,1738548657263,-325397.44212069,0.00018,15]
[351380295,1738548657274,-1271830.5432726,0.00018,15]
[351380296,1738548657285,-2350.00000001,0.00018,15]
[351380297,1738548657374,-500.0,0.00016575,2]
[351380298,1738548657383,-500.0,0.00016712,2]
[351380299,1738548657391,-390915.9833094,0.00018,15]
[351380300,1738548657403,-152494.68948337,0.00018,15]
[351380301,1738548657412,-5669.5005,0.00018,15]
[351380302,1738548657421,-470200.0,0.00018,15]
[351380303,1738548657431,-1424.50191168,0.00018,15]
[351380304,1738548657443,-3874.4912968,0.00018,15]
[351380305,1738548657455,-2392.0783971,0.00018,15]
[351380306,1738548657471,-500.0,0.00016849,2]
[351380307,1738548657480,-511.30438957,0.00018,15]
[351380308,1738548657489,-473.5025,0.00018,15]
[351380309,1738548657660,-500.0,0.00016438,2]
[351380310,1738548657671,-500.0,0.00016438,2]
[351380311,1738548657681,-500.0,0.00016438,2]
[351380312,1738548657691,-500.0,0.00016438,2]
[351380313,1738548657701,-500.59807059,0.00016438,2]
[351380314,1738548657711,-500.0,0.00016438,2]
[351380315,1738548657720,-500.0,0.00016575,2]
[351380316,1738548657730,-500.0,0.00016575,2]
[351380317,1738548657740,-500.0,0.00016575,2]
[351380318,1738548657750,-500.0,0.00016712,2]
[351380319,1738548657760,-500.0,0.00016712,2]
[351380320,1738548657770,-500.0,0.00016712,2]
[351380321,1738548657781,-500.0,0.00016849,2]
[351380322,1738548657791,-500.0,0.00016849,2]
[351380323,1738548657801,-500.0,0.00016849,2]
[351380324,1738548657811,-500.0,0.00016986,2]
[351380325,1738548657820,-500.0,0.00016986,2]
[351380326,1738548657829,-500.0,0.00016986,2]
[351380327,1738548657839,-500.0,0.00016986,2]
[351380328,1738548657850,-500.0,0.00017123,2]
[351380329,1738548657859,-500.0,0.00017123,2]
[351380330,1738548657869,-504.34939717,0.00017123,2]
[351380331,1738548657879,-500.0,0.00017123,2]
[351380332,1738548657889,-500.0,0.0001726,2]
[351380333,1738548657901,-500.0,0.0001726,2]
[351380334,1738548657910,-487.2,0.0001726,2]
[351380335,1738548657920,-540.92,0.00017397,2]
[351380336,1738548657930,-500.0,0.00017397,2]
[351380337,1738548657939,-500.0,0.00017534,2]
[351380338,1738548657951,-548.28,0.00017671,2]
[351380339,1738548657961,-295670.66819188,0.00018,15]
[351380340,1738548657974,-35901.10398643,0.00018,15]
[351380341,1738548657985,-70786.10000121,0.00018,15]
[351380342,1738548657997,-925.0,0.00018,15]
[351380343,1738548658010,-2224.99999999,0.00018,15]
[351380344,1738548658021,-2110.0000057,0.00018,15]
[351380345,1738548658033,-4728.31290043,0.00018,15]
[351380346,1738548658044,-8473.9215405,0.00018,15]
[351380347,1738548658057,-13194.70700056,0.00018,15]
[351380348,1738548658069,-17247.99999993,0.00018,15]
[351380349,1738548658080,-1080.68176802,0.00018,15]
[351380350,1738548658097,-500.0,0.00016575,2]
[351380351,1738548658107,-4206.21136439,0.00018,15]
[351380352,1738548658118,-129688.34458691,0.00018,15]
[351380353,1738548658130,-1810.0,0.00018,15]
[351380354,1738548658141,-632.34577631,0.00018,15]
[351380355,1738548658155,-1149.9999994,0.00018,15]
[351380356,1738548658167,-1200.0,0.00018,15]
[351380357,1738548658180,-93892.66334014,0.00018,15]
[351380358,1738548658287,-500.0,0.00016438,2]
[351380359,1738548658298,-500.0,0.00016438,2]
[351380360,1738548658308,-500.0,0.00016438,2]
[351380361,1738548658318,-582.40010277,0.00016438,2]
[351380362,1738548658328,-57.46996723,0.00016575,2]
[351380363,1738548658340,-444.60669562,0.00016575,2]
[351380364,1738548658350,-500.0,0.00016575,2]
[351380365,1738548658360,-500.0,0.00016575,2]
[351380366,1738548658369,-500.0,0.00016712,2]
[351380367,1738548658379,-152.0,0.00016762,2]
[351380368,1738548658389,-500.0,0.00016849,2]
[351380369,1738548658402,-500.0,0.00016986,2]
[351380370,1738548658413,-500.0,0.00017123,2]
[351380371,1738548658423,-883.39330438,0.00018,15]
[351380372,1738548658435,-923.8,0.00018,15]
[351380373,1738548658448,-3560.0,0.00018,15]
[351380374,1738548658466,-500.0,0.0001726,2]
[351380375,1738548658476,-9806.53,0.00018,15]
[351380376,1738548658487,-18000.0000005,0.00018,15]
[351380377,1738548658499,-92000.0,0.00018,15]
[351380378,1738548658511,-382.18114194,0.00018,15]
[351380379,1738548658523,-4784.0,0.00018,15]
[351380380,1738548658537,-52366.16,0.00018,15]
[351380381,1738548658550,-935.18,0.00018,15]
[351380382,1738548658563,-423.58,0.00018,15]
[351381461,1738549312681,12512.2698508,0.00015,2]
[351381462,1738549312720,4490.7301492,0.00015,2]
[351381473,1738549318793,151.76,0.00018,30]
[351381620,1738549398515,212.808102,0.00013973,2]
[351381749,1738549486316,-1000.0,0.00020502,120]
[351382080,1738549700629,2059.510942,0.00014829,2]
[351383909,1738549832421,-3400.0,0.0001526,2]
[351383910,1738549832431,-139.4313643,0.00015261,2]
[351384041,1738549838145,-75.7007657,0.00015261,2]
[351384042,1738549838155,-24900.0,0.00015453,2]
[351384044,1738549838165,-500.0,0.00015753,2]
[351384045,1738549838175,-10000.0,0.00016,2]
[351384046,1738549838185,-163.77902263,0.00016238,2]
[351384047,1738549838200,-181.36124753,0.00016338,2]
[351384048,1738549838210,-18350.5155163,0.000164,2]
[351384049,1738549838219,-500.0,0.00016437,2]
[351384050,1738549838228,-500.0,0.00016437,2]
[351384051,1738549838236,-517.53386027,0.00016437,2]
[351384052,1738549838245,-251.69154954,0.00016437,2]
[351384053,1738549838254,-500.0,0.00016437,2]
[351384054,1738549838263,-162.49814745,0.00016437,2]
[351384055,1738549838272,-207.60862694,0.00016437,2]
[351384056,1738549838280,-500.0,0.00016437,2]
[351384057,1738549838289,-500.0,0.00016437,2]
[351384058,1738549838298,-500.0,0.00016437,2]
[351384059,1738549838307,-500.0,0.00016437,2]
[351384060,1738549838316,-500.0,0.00016437,2]
[351384061,1738549838324,-500.0,0.00016437,2]
[351384063,1738549838332,-500.0,0.00016437,2]
[351384064,1738549838340,-500.0,0.00016437,2]
[351384065,1738549838349,-500.0,0.00016437,2]
[351384066,1738549838357,-500.0,0.00016437,2]
[351384068,1738549838365,-589.48413813,0.00016437,2]
[351384069,1738549838374,-500.0,0.00016437,2]
[351384071,1738549838384,-500.0,0.00016437,2]
[351384073,1738549838394,-559.08757996,0.00016437,2]
[351384075,1738549838403,-500.0,0.00016437,2]
[351384077,1738549838412,-500.0,0.00016437,2]
[351384079,1738549838421,-500.0,0.00016437,2]
[351384081,1738549838430,-500.0,0.00016437,2]
[351384083,1738549838442,-500.0,0.00016437,2]
[351384085,1738549838452,-500.0,0.00016438,2]
[351384087,1738549838461,-500.0,0.00016438,2]
[351384089,1738549838470,-179.43242056,0.00016438,2]
[351384091,1738549838480,-500.0,0.00016438,2]
[351384093,1738549838489,-500.0,0.00016438,2]
[351384095,1738549838498,-171.93475503,0.00016438,2]
[351384097,1738549838507,-645.01125921,0.00016438,2]
[351384099,1738549838516,-500.0,0.00016438,2]
[351384101,1738549838525,-613.93480986,0.00016438,2]
[351384103,1738549838533,-500.0,0.00016438,2]
[351384105,1738549838542,-500.0,0.00016438,2]
[351384107,1738549838550,-500.0,0.00016438,2]
[351384109,1738549838559,-500.0,0.00016438,2]
[351384111,1738549838568,-500.0,0.00016438,2]
[351384121,1738549838680,-501.16457703,0.00016438,2]
[351384123,1738549838693,-500.0,0.00016438,2]
[351384125,1738549838702,-500.0,0.00016438,2]
[351384127,1738549838712,-500.0,0.00016438,2]
[351384129,1738549838722,-591.29917896,0.00016438,2]
[351384131,1738549838731,-500.0,0.00016438,2]
[351384133,1738549838741,-500.0,0.00016438,2]
[351384135,1738549838750,-428.09705253,0.00016438,2]
[351384136,1738549838759,-604.93716432,0.00016438,2]
[351384139,1738549838769,-500.0,0.00016438,2]
[351384141,1738549838778,-500.0,0.00016438,2]
[351384143,1738549838788,-510.41015913,0.00016438,2]
[351384144,1738549838797,-500.0,0.00016438,2]
[351384147,1738549838807,-500.0,0.00016438,2]
[351384149,1738549838817,-507.550049,0.00016438,2]
[351384150,1738549838827,-500.0,0.00016438,2]
[351384152,1738549838837,-500.95105987,0.00016438,2]
[351384155,1738549838847,-500.0,0.00016438,2]
[351384156,1738549838856,-501.70054506,0.00016438,2]
[351384158,1738549838866,-502.56277619,0.00016438,2]
[351384161,1738549838875,-500.0,0.00016438,2]
[351384163,1738549838885,-500.0,0.00016438,2]
[351384165,1738549838895,-500.0,0.00016438,2]
[351384166,1738549838904,-423.27246763,0.00016438,2]
[351384169,1738549838914,-563.38895032,0.00016438,2]
[351384171,1738549838924,-500.0,0.00016438,2]
[351384173,1738549838936,-502.74588179,0.00016438,2]
[351384174,1738549838953,-598.07911379,0.00016438,2]
[351384177,1738549838963,-500.0,0.00016438,2]
[351384178,1738549838973,-500.0,0.00016438,2]
[351384179,1738549838988,-500.0,0.00016438,2]
[351384182,1738549838999,-501.00275463,0.00016438,2]
[351384183,1738549839010,-500.0,0.00016438,2]
[351384185,1738549839020,-500.0,0.00016438,2]
[351384187,1738549839030,-500.95602206,0.00016438,2]
[351384190,1738549839039,-500.0,0.00016438,2]
[351384192,1738549839048,-500.0,0.00016438,2]
[351384194,1738549839059,-500.9210978,0.00016438,2]
[351384196,1738549839067,-500.0,0.00016438,2]
[351384199,1738549839077,-500.43798557,0.00016438,2]
[351384201,1738549839086,-500.0,0.00016438,2]
[351384203,1738549839095,-500.0,0.00016438,2]
[351384205,1738549839104,-501.69629682,0.00016438,2]
[351384208,1738549839113,-500.0,0.00016438,2]
[351384209,1738549839122,-500.0,0.00016438,2]
[351384210,1738549839131,-500.0,0.00016438,2]
[351384211,1738549839139,-500.0,0.00016438,2]
[351384213,1738549839147,-500.0,0.00016438,2]
[351384214,1738549839156,-500.0,0.00016438,2]
[351384215,1738549839166,-500.0,0.00016438,2]
[351384216,1738549839175,-500.0,0.00016438,2]
[351384218,1738549839185,-500.0,0.00016438,2]
[351384219,1738549839198,-500.0,0.00016438,2]
[351384220,1738549839206,-500.75963256,0.00016438,2]
[351384221,1738549839216,-500.0,0.00016438,2]
[351384223,1738549839226,-500.0,0.00016438,2]
[351384224,1738549839237,-577.17110137,0.00016438,2]
[351384225,1738549839247,-500.01188449,0.00016438,2]
[351384227,1738549839257,-501.69455817,0.00016438,2]
[351384228,1738549839266,-500.0,0.00016438,2]
[351384229,1738549839276,-500.0,0.00016438,2]
[351384230,1738549839286,-500.0,0.00016438,2]
[351384232,1738549839296,-500.0,0.00016438,2]
[351384233,1738549839306,-522.7790286,0.00016438,2]
[351384234,1738549839316,-500.0,0.00016438,2]
[351384236,1738549839326,-500.0,0.00016438,2]
[351384237,1738549839337,-500.0,0.00016438,2]
[351384238,1738549839347,-500.81832434,0.00016438,2]
[351384239,1738549839357,-500.0,0.00016438,2]
[351384241,1738549839367,-592.18426383,0.00016438,2]
[351384242,1738549839377,-374.80141983,0.00016438,2]
[351384243,1738549839387,-500.0,0.00016438,2]
[351384244,1738549839397,-500.0,0.00016438,2]
[351384246,1738549839407,-500.0,0.00016438,2]
[351384247,1738549839417,-500.0,0.00016438,2]
[351384248,1738549839427,-505.59065001,0.00016438,2]
[351384250,1738549839437,-500.0,0.00016438,2]
[351384251,1738549839452,-500.0,0.00016438,2]
[351384252,1738549839462,-500.0,0.00016438,2]
[351384253,1738549839472,-500.0,0.00016438,2]
[351384255,1738549839482,-500.0,0.00016438,2]
[351384256,1738549839492,-500.0,0.00016438,2]
[351384257,1738549839502,-500.0,0.00016438,2]
[351384259,1738549839512,-500.0,0.00016438,2]
[351384260,1738549839522,-500.0,0.00016438,2]
[351384261,1738549839533,-501.29372841,0.00016438,2]
[351384262,1738549839544,-500.0,0.00016438,2]
[351384264,1738549839554,-500.0,0.00016438,2]
[351384265,1738549839563,-500.0,0.00016438,2]
[351384266,1738549839573,-500.0,0.00016438,2]
[351384267,1738549839583,-502.36541299,0.00016438,2]
[351384269,1738549839592,-500.0,0.00016438,2]
[351384270,1738549839602,-500.0,0.00016438,2]
[351384271,1738549839611,-500.0,0.00016438,2]
[351384273,1738549839621,-500.0,0.00016438,2]
[351384274,1738549839631,-501.09645612,0.00016438,2]
[351384275,1738549839641,-509.21659922,0.00016438,2]
[351384276,1738549839651,-443.41062945,0.00016438,2]
[351384278,1738549839661,-500.68411753,0.00016438,2]
[351384279,1738549839671,-500.0,0.00016438,2]
[351384280,1738549839681,-500.0,0.00016438,2]
[351384282,1738549839695,-503.33750756,0.00016438,2]
[351384283,1738549839705,-503.07183834,0.00016438,2]
[351384284,1738549839715,-501.35732158,0.00016438,2]
[351384285,1738549839725,-500.48503913,0.00016438,2]
[351384290,1738549839738,-500.0,0.00016438,2]
[351384293,1738549839748,-500.0,0.00016438,2]
[351384294,1738549839758,-503.37345465,0.00016438,2]
[351384295,1738549839768,-522.14910479,0.00016438,2]
[351384297,1738549839779,-500.0,0.00016438,2]
[351384298,1738549839788,-502.46438144,0.00016438,2]
[351384299,1738549839798,-421.33391447,0.00016438,2]